bitfinex/quotes_ETHUSD_20230116
["timestamp","ask_amount","ask_price","bid_price","bid_amount"]
[1673842175228,0.25474701,1571.9,1571.4,12.72708]
[1673842175435,0.25474701,1571.9,1571.5,3.27278678]
[1673842175641,0.25474701,1571.9,1571.6,3.60006546]
[1673842175886,0.25474701,1571.9,1571.7,3.27278678]
[1673842177953,0.25474701,1571.9,1571.8,3.28651878]
[1673842179014,0.25474701,1571.9,1571.8,9.64864878]
[1673842181218,0.25474701,1571.9,1571.8,3.28651878]
[1673842181423,1e-08,1571.9,1571.8,5.08761366]
[1673842185041,1e-08,1571.9,1571.8,11.44974366]
[1673842190254,1e-08,1571.9,1571.8,5.08761366]
[1673842190475,1e-08,1571.9,1571.8,3.28651878]
[1673842193709,1e-08,1571.9,1571.8,0.013732]
[1673842194931,0.23000001,1571.9,1571.8,0.013732]
[1673842195121,1e-08,1571.9,1571.8,0.013732]
[1673842195450,0.23000001,1571.9,1571.8,0.013732]
[1673842198006,0.23000001,1571.9,1571.8,0.01017131]
[1673842205472,1e-08,1571.9,1571.8,3.28295809]
[1673842206524,1e-08,1571.9,1571.8,9.64508809]
[1673842206682,3.151572,1572.1,1572.0,0.79813663]
[1673842206891,0.151572,1572.1,1572.0,6.07092341]
[1673842207131,0.151572,1572.1,1572.0,4.07092341]
[1673842208097,0.151572,1572.1,1572.0,5.31437375]
[1673842218720,0.151572,1572.1,1572.0,11.67569375]
[1673842222938,0.151572,1572.1,1572.0,13.67569375]
[1673842224243,0.151572,1572.1,1572.0,21.47901375]
[1673842227222,0.151572,1572.1,1572.0,18.03701375]
[1673842228278,0.151572,1572.1,1572.0,20.03701375]
[1673842229589,0.151572,1572.1,1572.0,7.31437375]
[1673842229806,0.151572,1572.1,1572.0,4.07092341]
[1673842230462,0.151572,1572.1,1572.0,4.06821238]
[1673842239206,0.151572,1572.1,1572.0,10.42953238]
[1673842240309,0.151572,1572.1,1572.0,16.79085238]
[1673842240488,0.151572,1572.1,1572.0,20.24485238]
[1673842240697,0.151572,1572.1,1572.0,24.82528162]
[1673842244894,0.15390596,1572.3,1572.1,2.0]
[1673842245225,0.15390596,1572.3,1572.2,9.63329678]
[1673842253145,7.67253025,1572.5,1572.2,15.99380678]
[1673842253305,7.67253025,1572.5,1572.3,5.27278678]
[1673842253513,7.67253025,1572.5,1572.3,3.27278678]
[1673842258239,7.67253025,1572.5,1572.4,3.27278678]
[1673842262229,7.67253025,1572.5,1572.4,3.60006546]
[1673842262439,7.67253025,1572.5,1572.4,9.95976546]
[1673842263919,7.67253025,1572.5,1572.4,9.63248678]
[1673842267076,0.16880041,1572.6,1572.5,1.51995982]
[1673842267294,0.16880041,1572.6,1572.5,18.7253466]
[1673842267505,0.16880041,1572.6,1572.5,20.7253466]
[1673842267943,0.16880041,1572.6,1572.5,49.6786466]
[1673842268135,0.16880041,1572.6,1572.5,55.60308126]
[1673842271293,0.16880041,1572.6,1572.5,55.59908126]
[1673842275330,0.16880041,1572.6,1572.5,36.9560466]
[1673842275628,0.16880041,1572.6,1572.5,34.9560466]
[1673842275998,0.16880041,1572.6,1572.5,33.7460466]
[1673842276326,0.16880041,1572.6,1572.5,40.1053466]
[1673842276749,0.16880041,1572.6,1572.5,47.6786466]
[1673842276946,0.16880041,1572.6,1572.5,54.03902626]
[1673842287054,0.21330913,1572.7,1572.5,54.03902626]
[1673842287287,0.21330913,1572.7,1572.6,5.27278678]
[1673842287473,0.21330913,1572.7,1572.6,17.99056678]
[1673842287687,0.21330913,1572.7,1572.6,15.99056678]
[1673842287917,0.21330913,1572.7,1572.6,22.03031741]
[1673842289036,0.21330913,1572.7,1572.6,3.27278678]
[1673842290927,0.21330913,1572.7,1572.5,1.51995982]
[1673842290928,7.78779913,1572.7,1572.5,1.51995982]
[1673842291268,7.78779913,1572.7,1572.5,4.7927466]
[1673842291502,1.42930913,1572.7,1572.5,4.7927466]
[1673842294031,1.42930913,1572.7,1572.5,3.27278678]
[1673842295055,0.21330913,1572.7,1572.5,3.27278678]
[1673842297277,3.33117487,1572.6,1572.5,3.27278678]
[1673842298500,0.21330913,1572.7,1572.6,0.9467002]
[1673842301972,0.21330913,1572.7,1572.6,4.21948698]
[1673842310947,0.21330913,1572.7,1572.6,4.21718652]
[1673842316516,0.21330913,1572.7,1572.6,7.42618652]
[1673842316733,0.21330913,1572.7,1572.6,24.63857652]
[1673842317040,0.21330913,1572.7,1572.6,30.99746652]
[1673842317775,0.1806055,1572.9,1572.7,8.35846]
[1673842317939,0.1806055,1572.9,1572.8,3.27278678]
[1673842320910,0.13610752,1572.9,1572.8,3.27278678]
[1673842322378,0.13610752,1572.9,1572.8,6.31804146]
[1673842324218,0.13610752,1572.9,1572.8,8.31804146]
[1673842324433,0.13610752,1572.9,1572.8,18.71184146]
[1673842326587,0.13610752,1572.9,1572.8,25.06992146]
[1673842330718,0.13610752,1572.9,1572.8,23.06992146]
[1673842331321,0.13610752,1572.9,1572.8,13.66658678]
[1673842338393,0.1729945,1573.1,1572.9,2.13610752]
[1673842338611,0.1729945,1573.1,1573.0,10.84005678]
[1673842338823,0.1729945,1573.1,1573.0,4.48278678]
[1673842340114,0.1729945,1573.1,1573.0,3.27278678]
[1673842340411,0.1729945,1573.1,1572.9,0.13610752]
[1673842340567,0.1729945,1573.1,1572.9,3.4088943]
[1673842343932,0.1729945,1573.1,1573.0,3.27278678]
[1673842348737,0.1729945,1573.1,1572.9,18.15290752]
[1673842348921,0.1729945,1573.1,1572.9,21.4256943]
[1673842352961,2.54794767,1573.1,1572.9,21.4256943]
[1673842353123,0.1729945,1573.1,1572.9,21.4256943]
[1673842353332,2.54794767,1573.1,1572.9,21.4256943]
[1673842354010,0.1729945,1573.1,1572.9,21.4256943]
[1673842357015,2.54794767,1573.1,1572.9,21.4256943]
[1673842358534,2.54794767,1573.1,1572.9,21.42366879]
[1673842361377,0.1729945,1573.1,1572.9,21.42366879]
[1673842362430,0.1729945,1573.1,1573.0,3.27278678]
[1673842364080,1e-08,1573.1,1573.0,11.63005678]
[1673842364303,1e-08,1573.1,1573.0,22.15915336]
[1673842365059,1e-08,1573.1,1573.0,23.36815336]
[1673842367686,1e-08,1573.1,1573.0,21.36815336]
[1673842369052,3.18195263,1573.3,1573.1,0.00199999]
[1673842369272,0.18195263,1573.3,1573.2,3.27278678]
[1673842369428,0.13195263,1573.3,1573.2,3.27278678]
[1673842371470,0.12844354,1573.3,1573.2,3.27278678]
[1673842372467,0.07844354,1573.3,1573.2,3.27278678]
[1673842373333,0.07844354,1573.3,1573.1,0.00199999]
[1673842373546,0.30844354,1573.3,1573.1,0.00199999]
[1673842375215,2.68339671,1573.3,1573.1,0.00199999]
[1673842375436,3.0,1573.2,1573.1,0.00199999]
[1673842378662,5.37495317,1573.2,1573.1,0.00199999]
[1673842378880,3.0,1573.2,1573.1,0.00199999]
[1673842379199,5.37495317,1573.2,1573.1,0.00199999]
[1673842379402,3.0,1573.2,1573.1,0.00199999]
[1673842379860,5.37495317,1573.2,1573.1,0.00199999]
[1673842380078,3.0,1573.2,1573.1,0.00199999]
[1673842381772,9.35647,1573.2,1573.1,0.00199999]
[1673842381931,11.96142317,1573.2,1573.1,0.00199999]
[1673842382624,9.58647,1573.2,1573.1,0.00199999]
[1673842383570,11.96142317,1573.2,1573.1,0.00199999]
[1673842383719,13.17442317,1573.2,1573.1,0.00199999]
[1673842384252,19.53089317,1573.2,1573.1,0.00199999]
[1673842388403,35.21788381,1573.2,1573.1,0.00199999]
[1673842389222,37.21788381,1573.2,1573.1,0.00199999]
[1673842391283,34.36794,1573.2,1573.1,0.00199999]
[1673842392064,37.21788381,1573.2,1573.1,0.00199999]
[1673842393067,32.36794,1573.2,1573.1,0.00199999]
[1673842393228,34.74715089,1573.2,1573.1,0.00199999]
[1673842393447,20.74715089,1573.2,1573.1,0.00199999]
[1673842395481,18.36794,1573.2,1573.1,0.00199999]
[1673842395897,12.01147,1573.2,1573.1,0.00199999]
[1673842396740,0.00075762,1573.1,1572.9,0.13408201]
[1673842396958,0.23075762,1573.1,1572.9,0.14158641]
[1673842400078,1.44675762,1573.1,1572.9,0.14158641]
[1673842403015,0.23075762,1573.1,1572.9,0.14158641]
[1673842407531,0.23,1573.1,1572.9,0.0075044]
[1673842408015,0.219837,1573.1,1572.9,0.0075044]
[1673842408399,6.576767,1573.1,1572.9,0.0075044]
[1673842408749,3.0,1573.0,1572.9,0.0075044]
[1673842411137,0.219837,1573.1,1572.9,0.0075044]
[1673842411138,3.219837,1573.1,1572.9,0.0075044]
[1673842415977,5.59904789,1573.1,1572.9,0.0075044]
[1673842416169,18.31282789,1573.1,1572.9,0.0075044]
[1673842416382,2.37921089,1573.0,1572.9,0.0075044]
[1673842416709,11.96648089,1573.0,1572.9,0.0075044]
[1673842418313,18.32375089,1573.0,1572.9,0.0075044]
[1673842419337,19.53975089,1573.0,1572.9,0.0075044]
[1673842419556,21.53975089,1573.0,1572.9,0.0075044]
[1673842419851,19.53975089,1573.0,1572.9,0.0075044]
[1673842420517,19.5370537,1573.0,1572.9,0.0075044]
[1673842421068,19.5370537,1573.0,1572.9,0.01625889]
[1673842421422,21.5370537,1573.0,1572.9,0.01625889]
[1673842421894,19.16054,1573.0,1572.9,0.01625889]
[1673842422119,17.16054,1573.0,1572.9,0.01625889]
[1673842423367,26.79059678,1573.0,1572.9,0.01625889]
[1673842423564,44.00659678,1573.0,1572.9,0.01625889]
[1673842424157,46.86298466,1573.0,1572.9,0.01625889]
[1673842424421,53.56098466,1573.0,1572.7,0.007611]
[1673842424580,16.427,1572.8,1572.7,0.007611]
[1673842424794,50.98865411,1572.8,1572.7,0.007611]
[1673842425003,51.21865411,1572.8,1572.7,0.007611]
[1673842425471,54.05855411,1572.8,1572.7,0.007611]
[1673842425680,54.88017618,1572.8,1572.7,0.007611]
[1673842426840,54.88017618,1572.8,1572.3,0.03779817]
[1673842426841,2.0,1572.7,1572.3,0.03779817]
[1673842427159,20.2929,1572.5,1572.3,0.03779817]
[1673842427312,3.23,1572.4,1572.3,0.03779817]
[1673842427523,9.5897,1572.4,1572.3,0.03779817]
[1673842429256,19.1654,1572.4,1572.3,0.03779817]
[1673842429949,20.3764,1572.4,1572.3,0.03779817]
[1673842430149,22.75461924,1572.4,1572.3,0.03779817]
[1673842430832,36.75461924,1572.4,1572.3,0.03779817]
[1673842431200,34.3764,1572.4,1572.3,0.03779817]
[1673842432580,34.37927571,1572.4,1572.3,0.03779817]
[1673842432789,32.37927571,1572.4,1572.3,0.03779817]
[1673842433043,38.03028173,1572.4,1572.3,0.03779817]
[1673842433353,38.84387213,1572.4,1572.3,0.03779817]
[1673842435151,45.05487213,1572.4,1572.3,0.03779817]
[1673842435453,42.68468456,1572.4,1572.3,0.03779817]
[1673842440692,43.33102374,1572.4,1572.3,0.03779817]
[1673842440895,42.68468456,1572.4,1572.3,0.03779817]
[1673842441109,37.68468456,1572.4,1572.3,0.03779817]
[1673842442298,42.68468456,1572.4,1572.3,0.03779817]
[1673842443236,50.94712782,1572.4,1572.2,0.03779817]
[1673842443445,50.94712782,1572.4,1572.1,0.04252517]
[1673842443446,3.27278678,1572.3,1572.1,0.04252517]
[1673842443661,47.94482678,1572.2,1572.1,0.04252517]
[1673842443832,48.76644885,1572.2,1572.1,0.04252517]
[1673842446360,47.39982678,1572.2,1572.1,0.04252517]
[1673842446722,36.31153,1572.2,1572.1,0.04252517]
[1673842455915,45.94482678,1572.2,1572.1,0.04252517]
[1673842456129,48.04616596,1572.2,1572.0,0.04252517]
[1673842456581,5.27278678,1572.1,1572.0,0.04252517]
[1673842456800,21.22460678,1572.1,1572.0,0.04252517]
[1673842457018,21.87094596,1572.1,1572.0,0.04252517]
[1673842458028,19.87094596,1572.1,1572.0,0.04252517]
[1673842458502,21.87094596,1572.1,1572.0,0.04252517]
[1673842459291,16.59815918,1572.1,1572.0,0.04252517]
[1673842459546,15.95182,1572.1,1572.0,0.04252517]
[1673842459814,19.22748249,1572.1,1572.0,0.04252517]
[1673842460051,21.22748249,1572.1,1572.0,0.04252517]
[1673842461421,22.44548249,1572.1,1572.0,0.04252517]
[1673842461641,20.44548249,1572.1,1572.0,0.04252517]
[1673842462017,23.09182167,1572.1,1572.0,0.04252517]
[1673842462243,25.46200924,1572.1,1572.0,0.04252517]
[1673842462752,24.30782167,1572.1,1572.0,0.04252517]
[1673842463174,26.68270584,1572.1,1572.0,0.04252517]
[1673842463662,25.46670584,1572.1,1572.0,0.04252517]
[1673842464190,23.09182167,1572.1,1572.0,0.04252517]
[1673842464538,22.44548249,1572.1,1572.0,0.04252517]
[1673842465022,23.66348249,1572.1,1572.0,0.04252517]
[1673842465399,26.52002982,1572.1,1572.0,0.04252517]
[1673842465533,27.166369,1572.1,1572.0,0.04252517]
[1673842465744,27.166369,1572.1,1571.8,0.04252517]
[1673842465983,17.218,1571.9,1571.8,0.04252517]
[1673842466197,51.31459585,1571.9,1571.8,0.04252517]
[1673842466746,51.54459585,1571.9,1571.8,0.04252517]
[1673842467319,49.81688167,1571.9,1571.8,0.04252517]
[1673842467536,53.31976818,1571.9,1571.8,0.04252517]
[1673842467752,49.81688167,1571.9,1571.8,0.04252517]
[1673842467965,52.19437584,1571.9,1571.8,0.04252517]
[1673842468161,49.81688167,1571.9,1571.8,0.04252517]
[1673842468401,51.03488167,1571.9,1571.8,0.04252517]
[1673842469400,50.38854249,1571.9,1571.8,0.04252517]
[1673842469563,60.589429,1571.9,1571.7,0.04796623]
[1673842469774,23.65504678,1571.8,1571.7,0.04796623]
[1673842470162,24.30138596,1571.8,1571.7,0.04796623]
[1673842470619,26.67889078,1571.8,1571.7,0.04796623]
[1673842470786,31.67889078,1571.8,1571.7,0.04796623]
[1673842471472,25.10176482,1571.8,1571.7,0.04796623]
[1673842471677,20.72426,1571.8,1571.7,0.04796623]
[1673842472055,15.72426,1571.8,1571.7,0.04796623]
[1673842473205,15.95426,1571.8,1571.7,0.04796623]
[1673842477360,3.0,1571.8,1571.7,1.26596623]
[1673842477531,6.36172,1571.9,1571.7,1.39695948]
[1673842477883,6.36172,1571.9,1571.8,1.218]
[1673842478573,12.72344,1571.9,1571.7,1.26396623]
[1673842478788,15.72426,1571.8,1571.7,1.26396623]
[1673842478997,15.95426,1571.8,1571.7,1.26396623]
[1673842481688,9.59213,1571.8,1571.7,1.26396623]
[1673842481899,2.05281159,1571.8,1571.7,2.93255948]
[1673842482117,6.36105,1572.1,1571.8,1.6837776]
[1673842482267,6.36105,1572.1,1572.0,1.218]
[1673842483649,9.59105,1572.1,1572.0,1.218]
[1673842484844,15.95224,1572.1,1572.0,1.218]
[1673842485539,15.95224,1572.1,1571.8,21.7583776]
[1673842485540,15.95511571,1572.1,1571.8,21.7583776]
[1673842485895,12.72344,1571.9,1571.8,21.7583776]
[1673842486067,12.95344,1571.9,1571.8,21.7583776]
[1673842486412,15.95344,1571.9,1571.8,21.7583776]
[1673842491939,9.59172,1571.9,1571.8,21.7583776]
[1673842495239,3.23,1571.9,1571.8,21.7583776]
[1673842495400,3.0,1572.0,1571.8,26.23065198]
[1673842495618,3.0,1572.0,1571.9,1.218]
[1673842495869,3.23,1572.0,1571.9,1.218]
[1673842496079,9.59132,1572.0,1571.9,1.218]
[1673842500131,15.95551571,1572.0,1571.8,21.7493776]
[1673842500346,0.23,1571.9,1571.8,21.7493776]
[1673842500597,6.59172,1571.9,1571.8,21.7493776]
[1673842500804,9.59172,1571.9,1571.8,21.7493776]
[1673842503024,3.23,1571.9,1571.8,20.5403776]
[1673842507017,3.23,1571.9,1571.8,20.53713673]
[1673842507346,15.95344,1571.9,1571.8,20.53713673]
[1673842512432,18.33094482,1571.9,1571.8,20.53713673]
[1673842512698,15.95344,1571.9,1571.8,20.53713673]
[1673842513950,18.33094482,1571.9,1571.8,20.53713673]
[1673842515210,32.80841343,1571.9,1571.8,1.68053673]
[1673842515526,29.95344,1571.9,1571.8,1.68053673]
[1673842519391,32.3353872,1571.9,1571.8,1.68053673]
[1673842522953,32.33506354,1571.9,1571.8,1.68053673]
[1673842523795,32.33506354,1571.9,1571.7,0.04796623]
[1673842524034,3.0,1571.8,1571.7,0.04796623]
[1673842524235,15.95426,1571.8,1571.7,0.04796623]
[1673842529148,3.23,1571.8,1571.7,0.04796623]
[1673842529344,3.23,1571.8,1571.7,2.30065019]
[1673842529554,9.59213,1571.8,1571.7,2.30065019]
[1673842530026,9.59213,1571.8,1571.7,0.04465019]
[1673842531473,9.59213,1571.8,1571.7,2.30065019]
[1673842531694,9.59213,1571.8,1571.7,0.04465019]
[1673842536220,20.33588354,1571.8,1571.7,0.04465019]
[1673842536435,18.33588354,1571.8,1571.7,0.04465019]
[1673842543002,18.33588354,1571.8,1571.5,29.55080114]
[1673842543422,0.23,1571.7,1571.5,29.55080114]
[1673842543757,6.36294,1571.6,1571.5,29.55080114]
[1673842543984,9.59294,1571.6,1571.5,29.55080114]
[1673842546829,15.95588,1571.6,1571.5,29.55080114]
[1673842550293,9.59294,1571.6,1571.5,29.55080114]
[1673842550610,3.23,1571.6,1571.5,29.55080114]
[1673842550944,0.36868991,1571.6,1571.5,32.58357578]
[1673842551103,8.26876259,1571.9,1571.5,32.58357578]
[1673842551320,0.23,1571.8,1571.6,4.71235758]
[1673842552256,9.59214,1571.8,1571.6,4.71235758]
[1673842553085,9.59214,1571.8,1571.6,1.454]
[1673842553650,11.49881259,1571.8,1571.6,1.454]
[1673842554924,17.86095259,1571.8,1571.5,31.00480114]
[1673842555549,14.63205259,1571.7,1571.5,29.55080114]
[1673842555768,5.13667259,1571.6,1571.5,29.55080114]
[1673842555926,9.59294,1571.6,1571.5,29.55080114]
[1673842556135,11.49961259,1571.6,1571.5,29.55080114]
[1673842556464,9.59294,1571.6,1571.5,29.55080114]
[1673842556690,11.49961259,1571.6,1571.5,29.55080114]
[1673842557233,17.86255259,1571.6,1571.5,29.55080114]
[1673842558251,20.24417613,1571.6,1571.5,29.55080114]
[1673842558529,18.33950486,1571.6,1571.5,29.55080114]
[1673842558668,18.33948983,1571.6,1571.5,29.55080114]
[1673842560974,18.33948983,1571.6,1571.5,18.35200114]
[1673842561487,18.33948983,1571.6,1571.5,0.04620114]
[1673842561927,18.34236554,1571.6,1571.5,0.04620114]
[1673842562338,32.34236554,1571.6,1571.5,0.04620114]
[1673842562555,32.81911499,1571.6,1571.5,0.04620114]
[1673842562992,34.81911499,1571.6,1571.5,0.04620114]
[1673842563820,32.81911499,1571.6,1571.5,0.04620114]
[1673842564592,36.09190177,1571.6,1571.5,0.04620114]
[1673842564816,35.23154249,1571.6,1571.5,0.04620114]
[1673842565021,36.68554249,1571.6,1571.5,0.04620114]
[1673842565327,37.33188167,1571.6,1571.5,0.04620114]
[1673842565485,40.19224095,1571.6,1571.5,0.04620114]
[1673842565704,37.33188167,1571.6,1571.5,0.04620114]
[1673842565925,35.33188167,1571.6,1571.5,0.04620114]
[1673842566997,40.19224095,1571.6,1571.5,0.04620114]
[1673842567342,35.33188167,1571.6,1571.5,0.04620114]
[1673842567503,34.68554249,1571.6,1571.5,0.04620114]
[1673842567715,38.19224095,1571.6,1571.5,0.04620114]
[1673842568857,37.33188167,1571.6,1571.5,0.04620114]
[1673842569113,35.33188167,1571.6,1571.5,0.04620114]
[1673842571198,34.23529205,1571.6,1571.5,0.04620114]
[1673842571405,32.33328282,1571.6,1571.5,0.04620114]
[1673842573714,32.33328282,1571.6,1571.5,0.04332351]
[1673842574259,34.23564801,1571.6,1571.5,0.04332351]
[1673842580131,32.33328282,1571.6,1571.5,0.04332351]
[1673842581706,35.6060696,1571.6,1571.5,0.04332351]
[1673842584431,35.60674522,1571.6,1571.5,0.04332351]
[1673842584647,33.22866678,1571.6,1571.5,0.04332351]
[1673842585734,36.08701835,1571.6,1571.5,0.04332351]
[1673842586322,38.08701835,1571.6,1571.5,0.04332351]
[1673842586807,36.08701835,1571.6,1571.5,0.04332351]
[1673842589412,37.29501835,1571.6,1571.5,0.04332351]
[1673842592061,34.43465907,1571.6,1571.5,0.04332351]
[1673842592216,35.08099825,1571.6,1571.5,0.04332351]
[1673842593305,38.41217312,1571.6,1571.5,0.04332351]
[1673842593690,40.78112204,1571.6,1571.5,0.04332351]
[1673842594144,42.44346304,1571.6,1571.5,0.04332351]
[1673842594360,38.51906122,1571.6,1571.5,0.04332351]
[1673842594748,38.51906122,1571.6,1571.5,3.51e-06]
[1673842594959,39.73806122,1571.6,1571.4,0.0509619]
[1673842595215,23.76560758,1571.5,1571.4,0.0509619]
[1673842595429,23.99560758,1571.5,1571.4,0.0509619]
[1673842595636,27.64194676,1571.5,1571.4,0.0509619]
[1673842597618,24.30980596,1571.5,1571.4,0.0509619]
[1673842598052,29.30980596,1571.5,1571.4,0.0509619]
[1673842598425,33.23708349,1571.5,1571.4,1.9e-06]
[1673842598659,33.23708349,1571.5,1571.3,0.05358472]
[1673842598999,39.6370121,1571.4,1571.3,0.05358472]
[1673842600860,37.95255829,1571.4,1571.3,0.05358472]
[1673842606152,37.95255829,1571.4,1571.3,0.00358472]
[1673842609506,34.67977151,1571.4,1571.3,0.00358472]
[1673842609717,34.67977151,1571.4,1571.3,2.25958472]
[1673842609718,32.98410474,1571.4,1571.3,2.25958472]
[1673842609945,31.86179611,1571.4,1571.3,2.25958472]
[1673842610116,31.86179611,1571.4,1571.3,3.47858472]
[1673842610465,31.86179611,1571.4,1571.3,1.22258472]
[1673842610615,31.86179611,1571.4,1571.3,0.00358472]
[1673842612233,34.24142519,1571.4,1571.3,0.00358472]
[1673842612431,31.86115963,1571.4,1571.3,0.00358472]
[1673842613283,34.24142519,1571.4,1571.3,0.00358472]
[1673842613494,32.33776556,1571.4,1571.3,0.00358472]
[1673842613882,32.98410474,1571.4,1571.3,0.00358472]
[1673842617552,32.33776556,1571.4,1571.3,0.00358472]
[1673842622465,33.46077151,1571.4,1571.3,0.00358472]
[1673842626673,33.46077151,1571.4,1571.3,0.00059093]
[1673842626825,34.96077151,1571.4,1571.3,0.00059093]
[1673842627040,33.46077151,1571.4,1571.3,0.00059093]
[1673842628572,33.46077151,1571.4,1571.3,2.25659093]
[1673842628573,30.60383918,1571.4,1571.3,2.25659093]
[1673842628722,32.33740201,1571.4,1571.3,2.25659093]
[1673842629080,7.28385904,1571.4,1571.3,2.48781422]
[1673842629272,7.28385904,1571.4,1571.3,3.69681422]
[1673842629273,1.90395703,1571.4,1571.3,3.69681422]
[1673842629612,4.28385904,1571.5,1571.3,3.69681422]
[1673842629775,4.28385904,1571.5,1571.4,1.209]
[1673842630195,1.90395703,1571.5,1571.4,1.209]
[1673842630440,4.28385904,1571.5,1571.4,1.57868142]
[1673842630667,4.51385904,1571.5,1571.4,1.57868142]
[1673842630981,8.49729703,1571.5,1571.4,1.209]
[1673842631192,13.87719904,1571.5,1571.4,1.209]
[1673842631772,11.49729703,1571.5,1571.4,1.209]
[1673842634943,5.13395703,1571.5,1571.4,1.209]
[1673842636018,11.49729703,1571.5,1571.4,1.209]
[1673842637768,11.49381426,1571.5,1571.4,1.209]
[1673842638345,3.23,1571.5,1571.4,1.55555909]
[1673842638656,3.23,1571.5,1571.4,2.77455909]
[1673842638818,0.23,1571.5,1571.4,2.77455909]
[1673842639373,3.0,1571.6,1571.4,7.26634587]
[1673842639581,8.74197201,1571.9,1571.5,2.648]
[1673842639796,8.74197201,1571.9,1571.7,1.219]
[1673842640004,18.74150201,1572.0,1571.7,1.219]
[1673842640194,20.36126,1572.1,1571.9,1.219]
[1673842640195,8.74116201,1572.1,1571.9,1.219]
[1673842640426,8.74116201,1572.1,1571.8,1.214]
[1673842640427,6.36126,1572.1,1572.0,1.209]
[1673842641180,8.74116201,1572.1,1572.0,1.209]
[1673842642071,6.36126,1572.1,1572.0,1.209]
[1673842642280,9.36126,1572.1,1572.0,1.209]
[1673842642981,9.59126,1572.1,1571.9,1.454]
[1673842643187,3.23,1572.0,1571.9,1.454]
[1673842643909,3.23,1572.0,1571.9,1.444]
[1673842644539,15.95264,1572.0,1571.8,11.6382]
[1673842644736,15.95264,1572.0,1571.8,10.1882]
[1673842644940,16.59897918,1572.0,1571.8,10.1882]
[1673842645553,0.64633918,1571.9,1571.6,18.4357]
[1673842645907,12.95426,1571.8,1571.6,28.783]
[1673842646122,3.0,1571.7,1571.6,28.783]
[1673842646644,3.0,1571.8,1571.7,1.444]
[1673842646808,3.0,1572.0,1571.7,6.38437868]
[1673842647018,3.0,1572.0,1571.8,1.443]
[1673842655019,3.0,1572.0,1571.9,1.454]
[1673842655368,3.23,1572.0,1571.9,1.454]
[1673842655526,0.23,1572.0,1571.9,1.454]
[1673842656484,0.23,1572.0,1571.9,1.5994]
[1673842657778,3.11827258,1572.2,1572.0,1.44]
[1673842657971,3.11827258,1572.2,1572.1,1.45]
[1673842664104,0.11827258,1572.2,1572.1,1.45]
[1673842668293,0.11827258,1572.2,1572.1,4.72278678]
[1673842668506,0.11827258,1572.2,1572.1,6.17519046]
[1673842668832,0.11827258,1572.2,1572.1,7.62819046]
[1673842672702,0.11827258,1572.2,1572.1,9.62819046]
[1673842674668,0.11827258,1572.2,1572.1,8.17819046]
[1673842674863,0.11819114,1572.3,1572.2,2.0]
[1673842675084,0.01819114,1572.3,1572.2,23.33688867]
[1673842675839,0.01819114,1572.3,1572.2,41.96818867]
[1673842678171,0.01819114,1572.3,1572.2,45.91296766]
[1673842678383,0.01819114,1572.3,1572.2,45.91296122]
[1673842678546,0.01819114,1572.3,1572.2,43.54611112]
[1673842678757,0.01819114,1572.3,1572.2,45.91296889]
[1673842679078,0.01819114,1572.3,1572.2,43.54611112]
[1673842679290,0.01819114,1572.3,1572.2,41.96818867]
[1673842679520,0.14445578,1572.6,1572.3,2.0]
[1673842679697,0.14445578,1572.6,1572.5,1.45]
[1673842679907,0.14445578,1572.6,1572.5,4.72278678]
[1673842683744,0.14445578,1572.6,1572.5,11.08208678]
[1673842685063,0.14445578,1572.6,1572.5,17.44138678]
[1673842686888,0.14445578,1572.6,1572.5,18.88838678]
[1673842687128,0.14445578,1572.6,1572.5,22.38702142]
[1673842687952,0.14445578,1572.6,1572.5,32.94392142]
[1673842688350,0.14445578,1572.6,1572.5,34.94392142]
[1673842688685,0.14445578,1572.6,1572.5,52.18552142]
[1673842694786,0.13683984,1572.7,1572.5,52.18552142]
[1673842694942,0.13683984,1572.7,1572.6,9.94133892]
[1673842695357,0.13683984,1572.7,1572.6,8.49133892]
[1673842695960,0.13683984,1572.7,1572.6,16.85022892]
[1673842696189,0.13683984,1572.7,1572.6,18.30422892]
[1673842696904,0.13683984,1572.7,1572.6,26.11711892]
[1673842699791,0.13442588,1572.7,1572.6,26.11711892]
[1673842705105,0.13442588,1572.7,1572.6,24.66311892]
[1673842712506,0.13442588,1572.7,1572.6,23.20911892]
[1673842714838,1e-08,1572.7,1572.6,23.20911892]
[1673842715841,1e-08,1572.7,1572.6,27.15295027]
[1673842718435,1e-08,1572.7,1572.6,28.60695027]
[1673842718633,4.3607389,1573.3,1572.7,2.86069503]
[1673842718841,0.07844354,1573.3,1573.1,3.27278678]
[1673842719171,0.07844354,1573.3,1573.2,4.84976474]
[1673842719401,0.07844354,1573.3,1573.2,27.40703488]
[1673842719632,0.40346523,1573.4,1573.2,25.83005692]
[1673842719786,0.40346523,1573.4,1573.3,13.08284678]
[1673842721849,0.40346523,1573.4,1573.3,3.27278678]
[1673842722006,0.40346523,1573.4,1573.3,9.62884678]
[1673842722217,0.40346523,1573.4,1573.3,20.59078146]
[1673842722835,0.40346523,1573.4,1573.3,24.04478146]
[1673842724096,0.40346523,1573.4,1573.3,25.49878146]
[1673842724308,0.00046523,1573.4,1573.3,29.44071999]
[1673842724513,0.00046523,1573.4,1573.3,37.80804337]
[1673842724728,0.18802917,1573.5,1573.4,2.0]
[1673842724974,0.18802917,1573.5,1573.4,31.51732137]
[1673842725142,0.18802917,1573.5,1573.4,32.16366055]
[1673842725513,0.58325,1573.6,1573.5,14.7105]
[1673842725821,0.58325,1573.6,1573.5,20.89128678]
[1673842726053,0.58325,1573.6,1573.5,21.76762596]
[1673842726269,0.58325,1573.6,1573.5,26.02784312]
[1673842726424,0.58325,1573.6,1573.5,43.92134312]
[1673842727122,0.19984785,1573.7,1573.5,43.92134312]
[1673842727310,0.19984785,1573.9,1573.6,18.31779638]
[1673842727477,0.21106504,1574.1,1573.8,3.27278678]
[1673842727688,0.21106504,1574.1,1573.6,15.88721045]
[1673842727689,2.59096705,1574.0,1573.9,44.38474546]
[1673842727904,0.21106504,1574.0,1573.9,21.16628678]
[1673842728360,0.21106504,1574.0,1573.9,3.27278678]
[1673842732002,0.21106504,1574.0,1573.9,4.72678678]
[1673842732207,0.21106504,1574.0,1573.9,18.08040596]
[1673842732418,0.21106504,1574.0,1573.9,21.53459056]
[1673842732658,0.21106504,1574.0,1573.9,23.53459056]
[1673842732976,0.21106504,1574.0,1573.9,34.64359056]
[1673842733314,6.504e-05,1574.0,1573.9,34.64359056]
[1673842733473,6.504e-05,1574.0,1573.9,34.41359056]
[1673842733928,6.504e-05,1574.0,1573.9,33.76725138]
[1673842734994,1e-08,1574.1,1574.0,2.0]
[1673842735171,1e-08,1574.1,1574.0,33.35225192]
[1673842735579,1e-08,1574.1,1574.0,31.35225192]